fUSD/lending_fUSD_20260408
["ID","MTS","AMOUNT","RATE_DAILY","PERIOD"]
[420015380,1775615448138,-500.0,0.00014914,2]
[420015381,1775615448149,-500.0,0.00014914,2]
[420015382,1775615448159,-246.4820278,0.00014914,2]
[420015383,1775615448169,-205.09085742,0.00014914,2]
[420015384,1775615448180,-151.0,0.00014914,2]
[420015385,1775615448190,-3000.0,0.00014914,2]
[420015386,1775615448201,-174.61919141,0.00014914,2]
[420015387,1775615448211,-3000.0,0.00014914,2]
[420015388,1775615448222,-3000.0,0.00014914,2]
[420015389,1775615448233,-3000.0,0.00014914,2]
[420015390,1775615448244,-330.40132426,0.00014914,2]
[420015391,1775615448254,-3000.0,0.00014914,2]
[420015392,1775615448264,-3000.0,0.00014914,2]
[420015393,1775615448275,-3000.0,0.00014914,2]
[420015394,1775615448286,-743.50770149,0.00014914,2]
[420015395,1775615448296,-3000.0,0.00014914,2]
[420015396,1775615448306,-3000.0,0.00014914,2]
[420015397,1775615448316,-3000.0,0.00014914,2]
[420015398,1775615448326,-3000.0,0.00014914,2]
[420015399,1775615448337,-3000.0,0.00014914,2]
[420015400,1775615448347,-3000.0,0.00014914,2]
[420015401,1775615448357,-2628.44139292,0.00014914,2]
[420015402,1775615448368,-151.0,0.00014914,2]
[420015403,1775615448378,-156.587,0.00014914,2]
[420015404,1775615448388,-195.49203722,0.00014914,2]
[420015405,1775615448398,-170.0,0.00014914,2]
[420015406,1775615448408,-599.60298507,0.00014914,2]
[420015407,1775615448418,-170.0,0.00014914,2]
[420015408,1775615448428,-170.0,0.00014914,2]
[420015409,1775615448438,-170.0,0.00014914,2]
[420015410,1775615448448,-170.0,0.00014914,2]
[420015411,1775615448458,-170.0,0.00014914,2]
[420015412,1775615448469,-170.0,0.00014914,2]
[420015413,1775615448480,-1500.0,0.00014914,2]
[420015414,1775615448490,-170.0,0.00014914,2]
[420015415,1775615448501,-1500.0,0.00014914,2]
[420015416,1775615448510,-170.0,0.00014914,2]
[420015417,1775615448519,-1500.0,0.00014914,2]
[420015418,1775615448530,-170.0,0.00014914,2]
[420015419,1775615448540,-1500.0,0.00014914,2]
[420015420,1775615448550,-170.0,0.00014914,2]
[420015421,1775615448561,-1500.0,0.00014914,2]
[420015422,1775615448571,-279.9045709,0.00014914,2]
[420015423,1775615448581,-170.0,0.00014914,2]
[420015424,1775615448591,-170.0,0.00014914,2]
[420015425,1775615448602,-170.0,0.00014914,2]
[420015426,1775615448612,-170.0,0.00014914,2]
[420015427,1775615448623,-5168.26892241,0.00014915,2]
[420015428,1775615448634,-5000.0,0.00014915,2]
[420015429,1775615448644,-5000.0,0.00014915,2]
[420015430,1775615448654,-5000.0,0.00014915,2]
[420015431,1775615448665,-5000.0,0.00014915,2]
[420015432,1775615448675,-160.0,0.00014922,2]
[420015433,1775615448686,-150.0,0.00014924,2]
[420015434,1775615448696,-150.0,0.00014924,2]
[420015435,1775615448706,-150.0,0.00014928,2]
[420015436,1775615448717,-200.0,0.00014932,2]
[420015437,1775615448727,-200.0,0.00014932,2]
[420015438,1775615448737,-200.0,0.00014932,2]
[420015439,1775615448747,-200.0,0.00014932,2]
[420015440,1775615448756,-200.0,0.00014932,2]
[420015441,1775615448767,-200.0,0.00014932,2]
[420015442,1775615448777,-200.0,0.00014932,2]
[420015443,1775615448787,-200.0,0.00014932,2]
[420015444,1775615448798,-200.0,0.00014932,2]
[420015445,1775615448808,-198.0,0.00014932,2]
[420015446,1775615448819,-1000.0,0.00014938,2]
[420015447,1775615448829,-150.0,0.00014947,2]
[420015448,1775615448839,-150.0,0.00014959,2]
[420015449,1775615448849,-150.0,0.00014959,2]
[420015450,1775615448859,-150.0,0.00014959,2]
[420015451,1775615448869,-150.0,0.00014959,2]
[420015452,1775615448879,-500.0,0.00014969,2]
[420015453,1775615448888,-8565.75555911,0.00014969,2]
[420015454,1775615448899,-151.0,0.00014969,2]
[420015455,1775615448909,-150.0,0.00014969,2]
[420015456,1775615448920,-150.0,0.00014994,2]
[420015457,1775615448930,-150.0,0.00014994,2]
[420015458,1775615448941,-150.0,0.00014996,2]
[420015459,1775615448952,-500.0,0.00015,2]
[420015460,1775615448962,-500.0,0.00015,2]
[420015461,1775615448972,-500.0,0.00015,2]
[420015462,1775615448982,-500.0,0.00015,2]
[420015463,1775615448992,-500.0,0.00015,2]
[420015464,1775615449001,-500.0,0.00015,2]
[420015465,1775615449012,-500.0,0.00015,2]
[420015466,1775615449023,-500.0,0.00015,2]
[420015467,1775615449033,-500.0,0.00015,2]
[420015468,1775615449044,-500.0,0.00015,2]
[420015469,1775615449054,-500.0,0.00015,2]
[420015470,1775615449063,-500.0,0.00015,2]
[420015471,1775615449074,-500.0,0.00015,2]
[420015472,1775615449084,-306.56,0.00015,2]
[420015473,1775615449093,-500.0,0.00015,2]
[420015474,1775615449104,-500.0,0.00015,2]
[420015475,1775615449114,-232.56,0.00015,2]
[420015476,1775615449124,-1007.07827575,0.00015,2]
[420015477,1775615449135,-300.0,0.00015,2]
[420015478,1775615449145,-172.93977457,0.00015,2]
[420015479,1775615449156,-150.0,0.00015007,2]
[420015480,1775615449166,-150.0,0.00015011,2]
[420015481,1775615449176,-500.0,0.00015024,2]
[420015482,1775615449185,-8882.6885148,0.00015024,2]
[420015483,1775615449195,-151.0,0.00015024,2]
[420015484,1775615449205,-150.0,0.00015036,2]
[420015485,1775615449215,-1542.0,0.0001504,2]
[420015486,1775615449226,-150.0,0.00015046,2]
[420015487,1775615449340,-150.0,0.00015052,2]
[420015488,1775615449351,-150.0,0.00015055,2]
[420015489,1775615449361,-150.0,0.00015064,2]
[420015490,1775615449371,-150.0,0.00015064,2]
[420015491,1775615449380,-800.64291471,0.00015068,2]
[420015492,1775615449390,-350.0,0.00015071,2]
[420015493,1775615449400,-500.0,0.00015079,2]
[420015494,1775615449409,-9211.34798985,0.00015079,2]
[420015495,1775615449419,-151.0,0.00015079,2]
[420015496,1775615449429,-350.0,0.00015083,2]
[420015497,1775615449438,-150.0,0.00015087,2]
[420015498,1775615449449,-150.0,0.00015087,2]
[420015499,1775615449459,-150.0,0.00015087,2]
[420015500,1775615449468,-150.0,0.00015087,2]
[420015501,1775615449478,-150.0,0.00015087,2]
[420015502,1775615449488,-150.0,0.00015087,2]
[420015503,1775615449498,-150.0,0.00015087,2]
[420015504,1775615449508,-150.0,0.00015087,2]
[420015505,1775615449517,-158.0,0.00015087,2]
[420015506,1775615449528,-150.0,0.00015094,2]
[420015507,1775615449538,-150.0,0.00015095,2]
[420015508,1775615449548,-150.0,0.00015103,2]
[420015509,1775615449558,-150.0,0.00015112,2]
[420015510,1775615449568,-150.0,0.00015123,2]
[420015511,1775615449577,-150.0,0.00015133,2]
[420015512,1775615449586,-150.0,0.00015133,2]
[420015513,1775615449596,-500.0,0.00015134,2]
[420015514,1775615449605,-9552.16786547,0.00015134,2]
[420015515,1775615449615,-151.0,0.00015134,2]
[420015516,1775615449625,-150.0,0.00015135,2]
[420015517,1775615449635,-797.0,0.00015136,2]
[420015518,1775615449644,-1600.0,0.00015137,2]
[420015519,1775615449655,-150.0,0.00015144,2]
[420015520,1775615449664,-150.0,0.00015151,2]
[420015521,1775615449674,-797.0,0.00015161,2]
[420015522,1775615449683,-797.0,0.00015163,2]
[420015523,1775615449693,-1000.0,0.00015174,2]
[420015524,1775615449703,-1000.0,0.00015174,2]
[420015525,1775615449712,-1000.0,0.00015174,2]
[420015526,1775615449722,-1059.64525964,0.00015174,2]
[420015527,1775615449733,-150.0,0.00015177,2]
[420015528,1775615449742,-150.0,0.00015189,2]
[420015529,1775615449752,-500.0,0.00015189,2]
[420015530,1775615449762,-4175.94977995,0.00015189,2]
[420015531,1775615449772,-151.0,0.00015189,2]
[420015532,1775615449781,-11881.85704527,0.00015194,2]
[420015533,1775615449791,-150.0,0.00015194,2]
[420015534,1775615449801,-150.0,0.00015199,2]
[420015535,1775615449810,-151.873119,0.000152,2]
[420015536,1775615449820,-150.0,0.00015203,2]
[420015537,1775615449830,-150.0,0.00015203,2]
[420015538,1775615449840,-150.0,0.00015215,2]
[420015539,1775615449851,-150.0,0.00015215,2]
[420015540,1775615449861,-1000.0,0.00015215,2]
[420015541,1775615449871,-1000.0,0.00015215,2]
[420015542,1775615449881,-1000.0,0.00015215,2]
[420015543,1775615449892,-1000.0,0.00015215,2]
[420015544,1775615449902,-1000.0,0.00015215,2]
[420015545,1775615449913,-503.76959284,0.00015215,2]
[420015546,1775615449922,-1000.0,0.00015215,2]
[420015547,1775615449932,-1000.0,0.00015215,2]
[420015548,1775615449942,-150.0,0.00015218,2]
[420015549,1775615449952,-507.0,0.00015224,3]
[420015550,1775615449962,-154.0,0.00015229,3]
[420015551,1775615449972,-150.0,0.00015243,2]
[420015552,1775615449981,-500.0,0.00015244,2]
[420015553,1775615449991,-151.0,0.00015244,2]
[420015554,1775615450000,-150.0,0.00015247,2]
[420015555,1775615450011,-797.0,0.00015255,2]
[420015556,1775615450021,-150.0,0.0001526,2]
[420015557,1775615450035,-150.0,0.00015266,2]
[420015558,1775615450045,-150.0,0.00015273,2]
[420015559,1775615450055,-150.0,0.00015273,2]
[420015560,1775615450064,-229.31,0.00015275,2]
[420015561,1775615450074,-150.0,0.00015293,2]
[420015562,1775615450085,-150.0,0.00015295,2]
[420015563,1775615450095,-500.0,0.00015299,2]
[420015564,1775615450105,-151.0,0.00015299,2]
[420015565,1775615450114,-88183.07,0.000153,2]
[420015566,1775615450125,-150.0,0.00015301,2]
[420015567,1775615450137,-797.0,0.00015301,2]
[420015568,1775615450148,-455.85546511,0.00015302,2]
[420015569,1775615450158,-736.0,0.00015342,2]
[420015570,1775615450168,-155.87561475,0.00015342,2]
[420015571,1775615450178,-171.87606985,0.00015342,2]
[420015572,1775615450187,-159.68322175,0.00015342,2]
[420015573,1775615450197,-151.47235084,0.00015342,2]
[420015574,1775615450206,-150.97836575,0.00015342,2]
[420015575,1775615450216,-150.33084193,0.00015342,2]
[420015576,1775615450225,-150.49506649,0.00015342,2]
[420015577,1775615450235,-150.35689888,0.00015342,2]
[420015578,1775615450244,-159.46006097,0.00015342,2]
[420015579,1775615450254,-210.7841716,0.00015342,2]
[420015580,1775615450263,-153.12246359,0.00015342,2]
[420015581,1775615450273,-157.71617808,0.00015342,2]
[420015582,1775615450283,-2000.0,0.00015342,2]
[420015583,1775615450293,-500.0,0.00015354,2]
[420015584,1775615450303,-151.0,0.00015354,2]
[420015585,1775615450314,-500.0,0.00015357,2]
[420015586,1775615450324,-500.0,0.00015357,2]
[420015587,1775615450334,-500.0,0.00015357,2]
[420015588,1775615450343,-500.0,0.00015357,2]
[420015589,1775615450353,-666.0,0.00015357,2]
[420015590,1775615450364,-244309.7673084,0.00015358,2]
[420015591,1775615450373,-162.0,0.0001536,2]
[420015592,1775615450384,-1573.0,0.0001536,2]
[420015593,1775615450394,-1573.0,0.0001536,2]
[420015594,1775615450404,-1573.0,0.0001536,2]
[420015595,1775615450414,-500.68321897,0.00015373,2]
[420015596,1775615450423,-500.0,0.00015373,2]
[420015597,1775615450433,-500.0,0.00015373,2]
[420015598,1775615450443,-516.67152996,0.00015373,2]
[420015599,1775615450452,-500.0,0.00015373,2]
[420015600,1775615450462,-500.0,0.00015373,2]
[420015601,1775615450471,-500.27274938,0.00015373,2]
[420015602,1775615450480,-500.0,0.00015373,2]
[420015603,1775615450490,-500.0,0.00015373,2]
[420015604,1775615450499,-500.0,0.00015373,2]
[420015605,1775615450509,-155.4903749,0.00015402,2]
[420015606,1775615450519,-1000.0,0.00015407,2]
[420015607,1775615450529,-151.0,0.00015409,2]
[420015608,1775615450540,-200.0,0.00015423,2]
[420015609,1775615450550,-1000.0,0.00015426,2]
[420015610,1775615450560,-883.52559,0.0001544,2]
[420015611,1775615450568,-255.228629,0.0001544,7]
[420015612,1775615450578,-882.545675,0.0001544,2]
[420015613,1775615450588,-279.614461,0.0001544,7]
[420015614,1775615450597,-1000.0,0.00015444,2]
[420015615,1775615450606,-5888.0,0.00015456,2]
[420015616,1775615450615,-187.78006525,0.00015462,2]
[420015617,1775615450624,-200.0,0.00015462,2]
[420015618,1775615450633,-181.08010149,0.00015462,2]
[420015619,1775615450643,-771.01748645,0.00015462,2]
[420015620,1775615450653,-621.78829552,0.00015462,2]
[420015621,1775615450663,-284.30312486,0.00015462,2]
[420015622,1775615450673,-151.0,0.00015464,2]
[420015623,1775615450683,-628.0831279,0.00015483,2]
[420015624,1775615450692,-429.26717036,0.00015483,2]
[420015625,1775615450702,-172.79520695,0.00015483,2]
[420015626,1775615450712,-150.0,0.00015483,2]
[420015627,1775615450722,-200.0,0.00015488,2]
[420015628,1775615450731,-666.0,0.00015499,2]
[420015629,1775615450741,-666.0,0.00015499,2]
[420015630,1775615450750,-32907.09,0.000155,3]
[420015631,1775615450760,-4000.0,0.00015507,2]
[420015632,1775615450769,-150.0,0.00015515,2]
[420015633,1775615450779,-151.0,0.00015519,2]
[420015634,1775615450789,-162.4733,0.0001552,2]
[420015635,1775615450798,-162.4733,0.0001553,2]
[420015636,1775615450809,-3292.0,0.00015533,2]
[420015637,1775615450818,-162.4732,0.0001554,2]
[420015638,1775615450828,-797.0,0.00015546,2]
[420015639,1775615450837,-162.4732,0.0001555,2]
[420015640,1775615450847,-162.4732,0.0001556,2]
[420015641,1775615450858,-162.4732,0.0001557,2]
[420015642,1775615450868,-500.0,0.00015573,2]
[420015643,1775615450878,-200.0,0.00015573,2]
[420015644,1775615450888,-151.0,0.00015574,2]
[420015645,1775615450898,-500.0,0.00015574,2]
[420015646,1775615450908,-200.0,0.00015574,2]
[420015647,1775615450918,-162.4732,0.0001558,2]
[420015648,1775615450928,-162.4733,0.0001558,2]
[420015649,1775615450938,-162.4733,0.0001558,2]
[420015650,1775615450947,-162.4733,0.0001558,2]
[420015651,1775615450956,-162.4733,0.0001558,2]
[420015652,1775615450966,-162.4733,0.0001558,2]
[420015653,1775615450976,-162.4733,0.0001558,2]
[420015654,1775615450986,-162.4733,0.0001558,2]
[420015655,1775615450996,-162.4733,0.0001558,2]
[420015656,1775615451007,-1000.0,0.00015584,2]
[420015657,1775615451016,-797.0,0.00015599,2]
[420015658,1775615451026,-1885.0,0.000156,5]
[420015659,1775615451036,-1509.0,0.000156,5]
[420015660,1775615451046,-11881.85704527,0.000156,2]
[420015661,1775615451056,-1000.0,0.00015614,2]
[420015662,1775615451066,-1000.0,0.00015625,2]
[420015663,1775615451075,-192.04623121,0.00015625,2]
[420015664,1775615451085,-600.0,0.00015629,2]
[420015665,1775615451094,-151.0,0.00015629,2]
[420015666,1775615451104,-250.0,0.00015644,2]
[420015667,1775615451114,-1000.0,0.00015647,2]
[420015668,1775615451123,-1000.0,0.00015666,2]
[420015669,1775615451133,-1118.62114824,0.0001568,2]
[420015670,1775615451143,-151.0,0.00015684,2]
[420015671,1775615451152,-578.22,0.00015684,2]
[420015672,1775615451162,-500.0,0.0001569,2]
[420015673,1775615451172,-500.0,0.0001569,2]
[420015674,1775615451181,-500.0,0.0001569,2]
[420015675,1775615451191,-418.66220179,0.0001569,2]
[420015676,1775615451200,-151.0,0.00015697,2]
[420015677,1775615451210,-666.0,0.00015698,2]
[420015678,1775615451219,-683.48047412,0.00015698,2]
[420015679,1775615451229,-666.0,0.00015699,2]
[420015680,1775615451239,-82805.5912864,0.00015699,2]
[420015681,1775615451248,-500.0,0.00015699,2]
[420015682,1775615451258,-500.0,0.00015699,2]
[420015683,1775615451268,-500.0,0.00015699,2]
[420015684,1775615451277,-500.0,0.00015699,2]
[420015685,1775615451287,-400.4,0.00015699,2]
[420015686,1775615451297,-6236.8192673,0.00015699,2]
[420015687,1775615451306,-500.0,0.00015699,2]
[420015688,1775615451315,-500.0,0.00015699,2]
[420015689,1775615451325,-4149.2715131,0.00015699,2]
[420015690,1775615451335,-54156.47425972,0.000157,2]
[420015691,1775615452426,-48088.80700601,0.000157,2]
[420015692,1775615452600,-266.0,0.0001191,2]
[420015693,1775615452611,-150.0,0.00013973,2]
[420015694,1775615452620,-150.0,0.00014247,2]
[420015695,1775615452629,-1347.0,0.00015482,2]
[420015696,1775615452638,-16767.95034282,0.000157,2]
[420015697,1775615452651,-19095.43421773,0.000157,2]
[420015698,1775615452663,-989.29856,0.000157,2]
[420015699,1775615452681,-887.00102635,0.000157,2]
[420015700,1775615452693,-266.63609076,0.000157,2]
[420015701,1775615452705,-4694.93067227,0.000157,2]
[420015702,1775615452842,-150.0,0.00013699,2]
[420015703,1775615452852,-150.0,0.00013973,2]
[420015704,1775615452862,-12704.66814329,0.000157,2]
[420015705,1775615452918,-11730.41853841,0.000157,2]
[420015706,1775615565287,150.0,0.00016,120]
[420015707,1775615600742,300.0,0.000116,4]
[420015708,1775615627098,10000.01,0.00011603,2]
[420015709,1775615627132,584.848421,0.00011603,2]
[420015710,1775615633587,300.0,0.000116,4]
[420015711,1775615648759,154.0,0.00011649,2]
[420015712,1775615724389,8961.161579,0.00011622,2]
[420015713,1775615724417,2920.69546629,0.00011622,2]
[420015714,1775615750888,150.0,0.00016,120]
[420015715,1775615767354,154.0,0.00011649,2]
[420015716,1775615782133,2500.0,0.00011622,2]
[420015717,1775615793581,4803.55857744,0.00011622,2]
[420015718,1775615827315,155.0,0.00011649,2]
[420015719,1775615870916,5041.45142256,0.00011622,2]
[420015720,1775615870939,10000.01,0.00011622,2]
[420015721,1775615870961,10000.01,0.00011622,2]
[420015722,1775615870983,1759.69419228,0.00011622,2]
[420015723,1775615882479,5533.0,0.000114,5]
[420015724,1775615882514,4467.01,0.000112,3]
[420015725,1775616124019,1655.65,0.00016,120]
[420015726,1775616164873,387.10221946,0.00016,120]
[420015727,1775616184151,-4467.0,0.000108,3]
[420015728,1775616184635,-1200.0,0.00010907,2]
[420015729,1775616184665,-300.0,0.00010907,2]
[420015730,1775616184694,-300.0,0.00010907,2]
[420015731,1775616184724,-300.0,0.00010907,2]
[420015732,1775616184762,-250.0,0.00010908,2]
[420015733,1775616184791,-234.257,0.00010908,2]
[420015734,1775616184822,-1343.638,0.00010908,2]
[420015735,1775616184962,-2144.22,0.00010908,2]
[420015736,1775616190218,-5008.79054523,0.00010908,2]
[420015737,1775616190332,-10000.01,0.00010908,2]
[420015738,1775616192991,-10000.01,0.00010908,2]
[420015739,1775616193106,-3598.64945477,0.00010908,2]
[420015740,1775616193138,-554.87796466,0.00010954,2]
[420015741,1775616193177,-1692.95516114,0.00010954,2]
[420015742,1775616196056,-195.0,0.00010994,2]
[420015743,1775616196086,-195.0,0.00010994,2]
[420015744,1775616196116,-1976.01,0.00011,2]
[420015745,1775616196171,-5267.99,0.00011,2]
[420015746,1775616241855,2000.0,0.00010922,2]
[420015747,1775616248877,155.0,0.00011,2]
[420015748,1775616263187,3326.08,0.0001096,2]
[420015749,1775616312090,155.0,0.00011,2]
[420015750,1775616312118,164.0,0.00011,2]
[420015751,1775616313652,1490.08,0.00016,120]
[420015752,1775616367363,155.0,0.00011,2]
[420015753,1775616421147,150.0,0.00011233,120]
[420015754,1775616425782,155.0,0.00011,2]
[420015755,1775616476693,-151.502,0.00011022,2]
[420015756,1775616482416,1852.42,0.00010713,2]
[420015757,1775616485602,155.0,0.00011022,2]
[420015758,1775616503215,1341.08,0.00016,120]
[420015759,1775616547250,155.0,0.00011022,2]
[420015760,1775616607293,155.0,0.00011022,2]
[420015761,1775616611913,164.0,0.00011022,2]
[420015765,1775616632950,-255.75980045,0.000111,3]
[420015766,1775616632964,-5277.24019955,0.000111,3]
[420015767,1775616632974,-150.0,0.00011233,2]
[420015769,1775616632984,-1200.0,0.00011282,2]
[420015771,1775616632993,-300.0,0.00011283,2]
[420015772,1775616633002,-481.0,0.00011283,2]
[420015773,1775616633011,-5533.0,0.000113,5]
[420015774,1775616633020,-300.0,0.00011399,2]
[420015775,1775616633029,-3585.60950199,0.00011422,2]
[420015776,1775616633042,-344.21686775,0.00011422,2]
[420015777,1775616633053,-4091.47863208,0.00011422,2]
[420015778,1775616633065,-2803.70066373,0.00011422,2]
[420015779,1775616633098,7215.586,0.00011022,2]
[420015780,1775616633120,2784.414,0.00011022,2]
[420015781,1775616633133,-1548.02116477,0.00011422,2]
[420015782,1775616633143,-86.43006445,0.00011507,2]
[420015783,1775616633155,-689.16136204,0.00011507,2]
[420015784,1775616633167,-2896.36857351,0.00011507,2]
[420015785,1775616633176,-279.10813452,0.00011512,2]
[420015786,1775616633186,-408.16035229,0.0001152,2]
[420015787,1775616633241,-593.97477054,0.0001152,2]
[420015788,1775616633251,-500.0,0.00011521,2]
[420015789,1775616633270,-500.0,0.00011521,2]
[420015790,1775616633283,-271.51073548,0.00011521,2]
[420015791,1775616633293,-500.0,0.00011521,2]
[420015792,1775616633303,-500.0,0.00011521,2]
[420015793,1775616633312,-500.0,0.00011521,2]
[420015794,1775616633323,-500.0,0.00011521,2]
[420015795,1775616633332,-195.61868452,0.00011521,2]
[420015796,1775616633342,-563.30783405,0.00011521,2]
[420015797,1775616633352,-243.57553178,0.00011521,2]
[420015798,1775616633362,-500.0,0.00011521,2]
[420015799,1775616633373,-618.74459028,0.00011521,2]
[420015800,1775616633383,-501.16875608,0.00011521,2]
[420015801,1775616633392,-500.0,0.00011521,2]
[420015802,1775616633402,-500.0,0.00011521,2]
[420015803,1775616633411,-500.0,0.00011521,2]
[420015804,1775616633420,-500.0,0.00011521,2]
[420015805,1775616633430,-500.0,0.00011521,2]
[420015806,1775616633439,-500.0,0.00011521,2]
[420015807,1775616633449,-500.0,0.00011521,2]
[420015808,1775616633458,-500.0,0.00011521,2]
[420015809,1775616633467,-500.0,0.00011521,2]
[420015810,1775616633477,-500.0,0.00011521,2]
[420015811,1775616633486,-500.0,0.00011521,2]
[420015812,1775616633496,-500.0,0.00011521,2]
[420015820,1775616633505,-500.0,0.00011521,2]
[420015821,1775616633985,-500.0,0.00011521,2]
[420015822,1775616633995,-500.0,0.00011521,2]
[420015823,1775616634004,-500.0,0.00011521,2]
[420015824,1775616634013,-500.0,0.00011521,2]
[420015825,1775616634022,-500.0,0.00011521,2]
[420015826,1775616634031,-500.0,0.00011521,2]
[420015827,1775616634040,-500.0,0.00011521,2]
[420015828,1775616634049,-500.0,0.00011521,2]
[420015829,1775616634059,-500.0,0.00011521,2]
[420015830,1775616634068,-500.0,0.00011521,2]
[420015831,1775616634076,-500.0,0.00011521,2]
[420015832,1775616634086,-500.0,0.00011521,2]
[420015833,1775616634095,-500.0,0.00011521,2]
[420015834,1775616634104,-500.0,0.00011521,2]
[420015835,1775616634113,-500.0,0.00011521,2]
[420015836,1775616634122,-500.0,0.00011521,2]
[420015837,1775616634131,-500.0,0.00011521,2]
[420015838,1775616634140,-415.02554307,0.00011521,2]
[420015839,1775616634149,-500.0,0.00011521,2]
[420015840,1775616634159,-500.0,0.00011521,2]
[420015841,1775616634168,-500.0,0.00011521,2]
[420015842,1775616634177,-500.0,0.00011521,2]
[420015843,1775616634186,-500.0,0.00011521,2]
[420015844,1775616634195,-500.0,0.00011521,2]
[420015845,1775616634204,-500.0,0.00011521,2]
[420015846,1775616634213,-500.0,0.00011521,2]
[420015847,1775616634222,-500.0,0.00011521,2]
[420015848,1775616634231,-491.50255431,0.00011521,2]
[420015849,1775616634240,-500.0,0.00011521,2]
[420015850,1775616634250,-500.0,0.00011521,2]
[420015851,1775616634259,-500.0,0.00011521,2]
[420015852,1775616634268,-499.99999999,0.00011521,2]
[420015853,1775616634277,-150.0,0.00011521,2]
[420015854,1775616634287,-55706.40424245,0.00011522,2]
[420015855,1775616634300,-8758.14716547,0.00011522,2]
[420015856,1775616634312,-3282.07846847,0.00011522,2]
[420015857,1775616634323,-10191.48118542,0.00011522,2]
[420015858,1775616634334,-530.57794545,0.00011522,2]
[420015859,1775616634345,-1015.16,0.00011522,2]
[420015860,1775616634356,-766.01991102,0.00011522,2]
[420015861,1775616634380,-292.91733824,0.00011522,2]
[420015862,1775616634391,-700.0,0.00011522,2]
[420015863,1775616634402,-868.79557888,0.00011522,2]
[420015864,1775616635666,201.0,9.989e-05,2]
[420015865,1775616636851,201.0,9.989e-05,2]
[420015866,1775616636884,201.0,9.989e-05,2]
[420015869,1775616638413,-3851.85832931,0.00011522,2]
[420015870,1775616638424,-1492.8292,0.00011522,2]
[420015871,1775616638435,-4131.57449147,0.00011522,2]
[420015872,1775616638446,-650.24869359,0.00011522,2]
[420015873,1775616638457,-868.01173278,0.00011522,2]
[420015874,1775616638677,-421.5,0.00011522,2]
[420015875,1775616638688,-40370.29201201,0.00011522,2]
[420015879,1775616640449,-2179.50897892,0.00011522,2]
[420015880,1775616640718,-1880.75339879,0.00011522,2]
[420015881,1775616640729,-1362041.84132773,0.00011522,2]
[420015882,1775616640740,-49908.3787,0.00011522,2]
[420015883,1775616640749,-289.0,0.00011564,2]
[420015884,1775616640758,-500.0,0.00011573,2]
[420015885,1775616640767,-500.0,0.00011573,2]
[420015886,1775616640776,-500.0,0.00011573,2]
[420015887,1775616640785,-455.42271784,0.00011573,2]
[420015888,1775616640793,-501.51019132,0.00011573,2]
[420015889,1775616640804,-500.0,0.00011573,2]
[420015890,1775616640812,-500.0,0.00011573,2]
[420015891,1775616640821,-500.0,0.00011573,2]
[420015892,1775616640830,-504.16954086,0.00011573,2]
[420015893,1775616640839,-500.0,0.00011573,2]
[420015894,1775616640848,-329.0,0.00011575,2]
[420015895,1775616641203,-1451.0,0.0001158,2]
[420015896,1775616641214,-257.0,0.00011587,2]